fUST/lending_fUST_20250116
["ID","MTS","AMOUNT","RATE_DAILY","PERIOD"]
[349070247,1736959842996,-500.0,0.00019451,3]
[349070248,1736959843006,-500.0,0.00019452,3]
[349070249,1736959843022,-500.0,0.00019452,3]
[349070250,1736959843032,-500.0,0.00019452,3]
[349070251,1736959843042,-280.63331756,0.00019452,3]
[349070252,1736959843052,-500.0,0.00019452,3]
[349070253,1736959843062,-500.0,0.00019452,3]
[349070254,1736959843071,-500.0,0.00019452,3]
[349070255,1736959843081,-500.0,0.00019452,3]
[349070256,1736959843091,-500.0,0.00019452,3]
[349070257,1736959843101,-500.0,0.00019452,3]
[349070258,1736959843111,-500.0,0.00019452,3]
[349070259,1736959843121,-500.0,0.00019452,3]
[349070260,1736959843131,-500.0,0.00019452,3]
[349070261,1736959843141,-500.0,0.00019452,3]
[349070263,1736959843151,-500.0,0.00019452,3]
[349070265,1736959843161,-833.38,0.00019452,3]
[349070267,1736959843170,-500.0,0.00019452,3]
[349070269,1736959843179,-341.4193513,0.00019452,3]
[349070271,1736959843189,-500.0,0.00019452,3]
[349070273,1736959843198,-500.0,0.00019452,3]
[349070275,1736959843207,-500.0,0.00019452,3]
[349070278,1736959843217,-211.66,0.00019452,3]
[349070280,1736959843227,-500.0,0.00019452,3]
[349070283,1736959843236,-500.0,0.00019452,3]
[349070286,1736959843246,-500.0,0.00019452,3]
[349070289,1736959843255,-500.0,0.00019452,3]
[349070291,1736959843264,-500.0,0.00019452,3]
[349070293,1736959843276,-500.0,0.00019452,3]
[349070296,1736959843289,-500.0,0.00019452,3]
[349070298,1736959843299,-500.0,0.00019452,3]
[349070300,1736959843308,-500.0,0.00019452,3]
[349070302,1736959843318,-4604.93,0.00019452,3]
[349070304,1736959843328,-500.0,0.00019452,3]
[349070307,1736959843337,-500.0,0.00019452,3]
[349070308,1736959843347,-191.95837781,0.00019452,3]
[349070310,1736959843357,-500.0,0.00019452,3]
[349070312,1736959843367,-500.0,0.00019452,3]
[349070314,1736959843376,-500.0,0.00019452,3]
[349070316,1736959843387,-500.0,0.00019452,3]
[349070319,1736959843397,-591.61,0.00019452,3]
[349070322,1736959843406,-500.0,0.00019452,3]
[349070325,1736959843416,-500.0,0.00019452,3]
[349070329,1736959843426,-643.34541767,0.00019452,3]
[349070331,1736959843435,-1548.12,0.00019452,3]
[349070333,1736959843445,-577.73552929,0.00019452,3]
[349070335,1736959843454,-823.85,0.00019452,3]
[349070337,1736959843464,-515.90948713,0.00019452,3]
[349070339,1736959843474,-1849.04,0.00019588,3]
[349070341,1736959843484,-500.0,0.00019588,3]
[349070343,1736959843494,-500.0,0.00019589,3]
[349070345,1736959843504,-500.0,0.00019589,3]
[349070347,1736959843513,-500.0,0.00019589,3]
[349070349,1736959843524,-500.0,0.00019589,3]
[349070351,1736959843533,-500.0,0.00019589,3]
[349070353,1736959843543,-500.0,0.00019589,3]
[349070354,1736959843552,-310.41,0.00019589,3]
[349070355,1736959843561,-500.0,0.00019589,3]
[349070356,1736959843571,-500.0,0.00019589,3]
[349070358,1736959843581,-500.0,0.00019589,3]
[349070360,1736959843591,-500.0,0.00019589,3]
[349070362,1736959843601,-833.38,0.00019589,3]
[349070364,1736959843611,-457.9227569,0.00019589,3]
[349070366,1736959843621,-179.91,0.00019589,3]
[349070369,1736959843631,-500.0,0.00019589,3]
[349070371,1736959843640,-500.0,0.00019589,3]
[349070374,1736959843651,-500.0,0.00019589,3]
[349070377,1736959843660,-500.0,0.00019589,3]
[349070379,1736959843671,-226.85778666,0.00019589,3]
[349070381,1736959843681,-500.0,0.00019589,3]
[349070383,1736959843690,-500.0,0.00019589,3]
[349070385,1736959843700,-500.0,0.00019589,3]
[349070388,1736959843711,-500.0,0.00019589,3]
[349070390,1736959843720,-500.0,0.00019589,3]
[349070394,1736959843815,-500.0,0.00019589,3]
[349070395,1736959843826,-4604.93,0.00019589,3]
[349070396,1736959843836,-500.0,0.00019589,3]
[349070397,1736959843846,-500.0,0.00019589,3]
[349070398,1736959843855,-500.0,0.00019589,3]
[349070399,1736959843865,-500.0,0.00019589,3]
[349070400,1736959843874,-500.0,0.00019589,3]
[349070401,1736959843884,-591.61,0.00019589,3]
[349070402,1736959843894,-1548.12,0.00019589,3]
[349070403,1736959843904,-823.85,0.00019589,3]
[349070404,1736959843914,-381.334,0.00019658,2]
[349070405,1736959843924,-192.475,0.00019658,2]
[349070406,1736959843934,-1849.04,0.00019725,3]
[349070407,1736959843948,-500.0,0.00019725,3]
[349070408,1736959843958,-500.0,0.00019726,3]
[349070409,1736959843968,-500.0,0.00019726,3]
[349070410,1736959843979,-500.0,0.00019726,3]
[349070411,1736959843988,-500.0,0.00019726,3]
[349070412,1736959843998,-630.73,0.00019726,3]
[349070413,1736959844007,-500.0,0.00019726,3]
[349070414,1736959844019,-500.0,0.00019726,3]
[349070415,1736959844030,-500.0,0.00019726,3]
[349070416,1736959844040,-500.0,0.00019726,3]
[349070417,1736959844049,-500.0,0.00019726,3]
[349070418,1736959844059,-833.38,0.00019726,3]
[349070419,1736959844069,-500.0,0.00019726,3]
[349070420,1736959844079,-500.0,0.00019726,3]
[349070421,1736959844089,-500.0,0.00019726,3]
[349070422,1736959844099,-500.0,0.00019726,3]
[349070423,1736959844109,-500.0,0.00019726,3]
[349070424,1736959844119,-500.0,0.00019726,3]
[349070425,1736959844128,-500.0,0.00019726,3]
[349070426,1736959844138,-500.0,0.00019726,3]
[349070427,1736959844147,-500.0,0.00019726,3]
[349070428,1736959844156,-4604.93,0.00019726,3]
[349070429,1736959844165,-500.0,0.00019726,3]
[349070430,1736959844175,-500.0,0.00019726,3]
[349070431,1736959844185,-500.0,0.00019726,3]
[349070432,1736959844195,-500.0,0.00019726,3]
[349070433,1736959844204,-501.48,0.00019726,3]
[349070436,1736959844214,-591.61,0.00019726,3]
[349070439,1736959844224,-1548.12,0.00019726,3]
[349070441,1736959844234,-823.85,0.00019726,3]
[349070443,1736959844243,-1849.04,0.00019862,3]
[349070445,1736959844253,-500.0,0.00019863,3]
[349070447,1736959844263,-500.0,0.00019863,3]
[349070450,1736959844273,-317.31276362,0.00019863,3]
[349070451,1736959844282,-500.0,0.00019863,3]
[349070454,1736959844292,-500.0,0.00019863,3]
[349070456,1736959844301,-643.76555935,0.00019863,3]
[349070458,1736959844312,-500.0,0.00019863,3]
[349070460,1736959844322,-500.0,0.00019863,3]
[349070462,1736959844331,-833.38,0.00019863,3]
[349070464,1736959844341,-500.0,0.00019863,3]
[349070467,1736959844350,-500.0,0.00019863,3]
[349070469,1736959844360,-500.0,0.00019863,3]
[349070471,1736959844370,-500.0,0.00019863,3]
[349070473,1736959844380,-500.0,0.00019863,3]
[349070475,1736959844391,-500.0,0.00019863,3]
[349070477,1736959844401,-500.0,0.00019863,3]
[349070479,1736959844410,-500.0,0.00019863,3]
[349070480,1736959844420,-4604.93,0.00019863,3]
[349070481,1736959844429,-500.0,0.00019863,3]
[349070482,1736959844439,-500.0,0.00019863,3]
[349070483,1736959844449,-438.14,0.00019863,3]
[349070484,1736959844458,-198.85134574,0.00019863,3]
[349070485,1736959844468,-591.61,0.00019863,3]
[349070486,1736959844477,-1548.12,0.00019863,3]
[349070487,1736959844487,-823.85,0.00019863,3]
[349070488,1736959844497,-207.2248225,0.000199,2]
[349070489,1736959844508,-1171.0512713,0.00019958,2]
[349070491,1736959844518,-1849.04,0.00019999,3]
[349070492,1736959844529,-1169.91184853,0.0002,12]
[349070493,1736959844538,-160.0,0.0002,2]
[349070494,1736959844548,-500.0,0.0002,3]
[349070495,1736959844558,-500.0,0.0002,3]
[349070496,1736959844568,-500.0,0.0002,3]
[349070497,1736959844579,-500.0,0.0002,3]
[349070498,1736959844588,-500.0,0.0002,3]
[349070499,1736959844599,-500.0,0.0002,3]
[349070500,1736959844608,-833.38,0.0002,3]
[349070501,1736959844618,-1000.0,0.0002,20]
[349070502,1736959844627,-338.95515619,0.0002,3]
[349070503,1736959844638,-1000.0,0.0002,3]
[349070504,1736959844648,-500.0,0.0002,3]
[349070505,1736959844659,-500.0,0.0002,3]
[349070506,1736959844669,-500.0,0.0002,3]
[349070507,1736959844679,-500.0,0.0002,3]
[349070508,1736959844689,-500.0,0.0002,3]
[349070509,1736959844699,-500.0,0.0002,3]
[349070510,1736959844709,-500.0,0.0002,3]
[349070511,1736959844719,-4604.93,0.0002,3]
[349070512,1736959844729,-500.0,0.0002,3]
[349070513,1736959844739,-500.0,0.0002,3]
[349070514,1736959844748,-591.61,0.0002,3]
[349070515,1736959844758,-1548.12,0.0002,3]
[349070516,1736959844769,-207.22482246,0.0002009,2]
[349070517,1736959844781,-1849.04,0.00020135,3]
[349070518,1736959844790,-500.0,0.00020136,3]
[349070519,1736959844799,-553.02216667,0.00020136,3]
[349070520,1736959844810,-500.0,0.00020136,3]
[349070521,1736959844820,-500.0,0.00020136,3]
[349070522,1736959844831,-500.0,0.00020136,3]
[349070523,1736959844842,-571.71016151,0.00020136,3]
[349070524,1736959844851,-833.38,0.00020136,3]
[349070525,1736959844861,-500.0,0.00020136,3]
[349070526,1736959844871,-500.0,0.00020136,3]
[349070527,1736959844882,-500.0,0.00020136,3]
[349070528,1736959844892,-500.0,0.00020136,3]
[349070529,1736959844902,-500.0,0.00020136,3]
[349070530,1736959844912,-500.0,0.00020136,3]
[349070531,1736959844922,-500.0,0.00020136,3]
[349070532,1736959844932,-4604.93,0.00020136,3]
[349070533,1736959844943,-500.0,0.00020136,3]
[349070534,1736959844955,-500.0,0.00020136,3]
[349070535,1736959844965,-591.61,0.00020136,3]
[349070536,1736959844975,-1548.12,0.00020136,3]
[349070537,1736959844985,-167.976312,0.00020195,2]
[349070538,1736959844994,-319.29781831,0.00020273,3]
[349070539,1736959845004,-500.0,0.00020273,3]
[349070540,1736959845015,-500.0,0.00020273,3]
[349070541,1736959845025,-500.0,0.00020273,3]
[349070542,1736959845035,-833.38,0.00020273,3]
[349070543,1736959845048,-500.0,0.00020273,3]
[349070544,1736959845058,-500.0,0.00020273,3]
[349070545,1736959845068,-500.0,0.00020273,3]
[349070546,1736959845078,-500.0,0.00020273,3]
[349070547,1736959845087,-500.0,0.00020273,3]
[349070548,1736959845096,-500.0,0.00020273,3]
[349070549,1736959845106,-500.0,0.00020273,3]
[349070550,1736959845116,-4604.93,0.00020273,3]
[349070551,1736959845125,-500.0,0.00020273,3]
[349070552,1736959845136,-500.0,0.00020273,3]
[349070553,1736959845146,-591.61,0.00020273,3]
[349070554,1736959845155,-1548.12,0.00020273,3]
[349070555,1736959845164,-207.22482246,0.00020281,2]
[349070556,1736959845174,-1849.04,0.00020409,3]
[349070557,1736959845186,-500.0,0.0002041,3]
[349070558,1736959845196,-500.0,0.0002041,3]
[349070559,1736959845207,-500.0,0.0002041,3]
[349070560,1736959845217,-833.38,0.0002041,3]
[349070561,1736959845227,-381.10346404,0.0002041,3]
[349070562,1736959845238,-500.0,0.0002041,3]
[349070563,1736959845248,-500.0,0.0002041,3]
[349070564,1736959845258,-500.0,0.0002041,3]
[349070565,1736959845268,-500.0,0.0002041,3]
[349070566,1736959845279,-500.0,0.0002041,3]
[349070567,1736959845290,-500.0,0.0002041,3]
[349070568,1736959845300,-4604.93,0.0002041,3]
[349070569,1736959845309,-500.0,0.0002041,3]
[349070570,1736959845318,-500.0,0.0002041,3]
[349070571,1736959845329,-591.61,0.0002041,3]
[349070572,1736959845339,-1548.12,0.0002041,3]
[349070573,1736959845349,-207.22482246,0.00020471,2]
[349070574,1736959845359,-209.634364,0.00020521,2]
[349070575,1736959845369,-1849.04,0.00020546,3]
[349070576,1736959845379,-500.0,0.00020547,3]
[349070577,1736959845390,-427.83501286,0.00020547,3]
[349070578,1736959845400,-500.0,0.00020547,3]
[349070579,1736959845410,-833.38,0.00020547,3]
[349070580,1736959845420,-500.0,0.00020547,3]
[349070581,1736959845430,-500.0,0.00020547,3]
[349070582,1736959845440,-500.0,0.00020547,3]
[349070583,1736959845451,-385.81475089,0.00020547,3]
[349070584,1736959845461,-500.0,0.00020547,3]
[349070585,1736959845470,-500.0,0.00020547,3]
[349070586,1736959845480,-2753.45580938,0.00020547,3]
[349070587,1736959845600,-500.0,0.00019178,2]
[349070588,1736959845610,-500.0,0.00019178,2]
[349070589,1736959845620,-332.736085,0.00019315,3]
[349070680,1736959951590,160.0,0.00023924,120]
[349070735,1736960047016,161.287521,0.00013973,2]
[349070799,1736960291783,157.392027,0.0002411,120]
[349070829,1736960463965,10000.0,0.00025,120]
[349070837,1736960497437,10000.0,0.00025,120]
[349070840,1736960505413,10000.0,0.00025,120]
[349070842,1736960513058,10000.0,0.00025,120]
[349070844,1736960521257,10000.0,0.00025,120]
[349070846,1736960527282,10000.0,0.00025,120]
[349070849,1736960533923,10000.0,0.00025,120]
[349070851,1736960539782,10000.0,0.00025,120]
[349070854,1736960546144,10000.0,0.00025,120]
[349070858,1736960559987,5553.0,0.00025,120]
[349070886,1736960833501,5954.2,0.00015053,2]
[349070889,1736960901262,1989.65248449,0.00025,120]
[349070892,1736960958558,161.481615,0.00013973,2]
[349070949,1736961031979,-250.0,0.00017774,2]
[349070950,1736961031995,-219.16991495,0.00017774,2]
[349070958,1736961032094,-3696.46756956,0.00017774,2]
[349070960,1736961032106,-384.967512,0.00017805,2]
[349070963,1736961032117,-300.0,0.00018157,2]
[349070965,1736961032129,-5230.1878222,0.00018158,2]
[349070967,1736961032143,-5912.16223454,0.00018246,2]
[349070970,1736961032160,-1103.7472763,0.00018246,2]
[349070973,1736961032175,-4805.12411312,0.00018246,2]
[349070977,1736961032203,-7033.48477751,0.00018246,2]
[349071248,1736961040004,-6045.48159853,0.00018246,2]
[349071249,1736961040015,-169.44364145,0.00018522,2]
[349071250,1736961040025,-2923.51246063,0.00019,2]
[349071251,1736961040043,-33.19244937,0.00019,2]
[349071252,1736961040052,-287.0529592,0.00019,2]
[349071253,1736961040063,-887.32110821,0.00019078,2]
[349071254,1736961040074,-502.77137632,0.00019177,2]
[349071255,1736961040083,-500.0,0.00019177,2]
[349071256,1736961040093,-500.0,0.00019177,2]
[349071257,1736961040103,-500.0,0.00019177,2]
[349071259,1736961040113,-500.0,0.00019177,2]
[349071261,1736961040122,-500.0,0.00019177,2]
[349071263,1736961040132,-500.0,0.00019177,2]
[349071264,1736961040142,-500.0,0.00019177,2]
[349071267,1736961040151,-352.92047942,0.00019177,2]
[349071268,1736961040161,-500.0,0.00019177,2]
[349071271,1736961040171,-500.0,0.00019177,2]
[349071272,1736961040180,-500.0,0.00019177,2]
[349071274,1736961040190,-285.34382786,0.00019177,2]
[349071276,1736961040200,-500.0,0.00019177,2]
[349071279,1736961040209,-500.0,0.00019177,2]
[349071281,1736961040219,-500.0,0.00019177,2]
[349071283,1736961040229,-500.0,0.00019177,2]
[349071285,1736961040239,-500.0,0.00019177,2]
[349071287,1736961040249,-500.0,0.00019177,2]
[349071289,1736961040260,-500.0,0.00019177,2]
[349071291,1736961040269,-525.02912645,0.00019177,2]
[349071293,1736961040281,-500.0,0.00019177,2]
[349071295,1736961040290,-500.0,0.00019177,2]
[349071297,1736961040300,-513.75664325,0.00019177,2]
[349071299,1736961040309,-434.03071938,0.00019177,2]
[349071301,1736961040319,-500.0,0.00019177,2]
[349071303,1736961040329,-500.0,0.00019177,2]
[349071305,1736961040340,-500.0,0.00019177,2]
[349071307,1736961040350,-500.0,0.00019177,2]
[349071309,1736961040359,-500.0,0.00019177,2]
[349071311,1736961040370,-500.0,0.00019177,2]
[349071313,1736961040380,-500.0,0.00019177,2]
[349071315,1736961040390,-500.0,0.00019177,2]
[349071317,1736961040399,-500.0,0.00019177,2]
[349071319,1736961040410,-500.0,0.00019177,2]
[349071321,1736961040420,-500.0,0.00019177,2]
[349071323,1736961040430,-500.0,0.00019177,2]
[349071325,1736961040440,-500.0,0.00019177,2]
[349071327,1736961040450,-500.0,0.00019177,2]
[349071329,1736961040459,-500.0,0.00019177,2]
[349071331,1736961040469,-500.0,0.00019177,2]
[349071333,1736961040478,-500.0,0.00019177,2]
[349071335,1736961040490,-500.0,0.00019177,2]
[349071337,1736961040501,-500.0,0.00019177,2]
[349071339,1736961040510,-500.0,0.00019177,2]
[349071341,1736961040520,-500.0,0.00019177,2]
[349071343,1736961040531,-500.0,0.00019177,2]
[349071345,1736961040541,-500.0,0.00019178,2]
[349071347,1736961040550,-500.0,0.00019178,2]
[349071349,1736961040560,-194.46,0.00019178,2]
[349071351,1736961040569,-473.02019755,0.00019178,2]
[349071353,1736961040579,-184.89271701,0.00019178,2]
[349071355,1736961040588,-500.0,0.00019178,2]
[349071357,1736961040598,-500.0,0.00019178,2]
[349071359,1736961040608,-500.0,0.00019178,2]
[349071361,1736961040617,-500.0,0.00019178,2]
[349071363,1736961040626,-500.0,0.00019178,2]
[349071365,1736961040635,-500.0,0.00019178,2]
[349071367,1736961040645,-500.0,0.00019178,2]
[349071369,1736961040655,-500.0,0.00019178,2]
[349071371,1736961040665,-500.0,0.00019178,2]
[349071374,1736961040686,-500.0,0.00019178,2]
[349071376,1736961040697,-500.0,0.00019178,2]
[349071378,1736961040707,-500.0,0.00019178,2]
[349071380,1736961040717,-500.0,0.00019178,2]
[349071382,1736961040727,-507.11558583,0.00019178,2]
[349071384,1736961040738,-500.0,0.00019178,2]
[349071386,1736961040748,-500.0,0.00019178,2]
[349071388,1736961040759,-500.0,0.00019178,2]
[349071390,1736961040768,-365.19166822,0.00019178,2]
[349071393,1736961040779,-500.0,0.00019178,2]
[349071395,1736961040788,-500.0,0.00019178,2]
[349071396,1736961040798,-500.0,0.00019178,2]
[349071398,1736961040809,-500.0,0.00019178,2]
[349071401,1736961040819,-500.0,0.00019178,2]
[349071403,1736961040830,-500.0,0.00019178,2]
[349071405,1736961040841,-500.0,0.00019178,2]
[349071407,1736961040851,-500.0,0.00019178,2]
[349071409,1736961040861,-500.0,0.00019178,2]
[349071411,1736961040872,-500.0,0.00019178,2]
[349071413,1736961040881,-500.0,0.00019178,2]
[349071415,1736961040892,-500.0,0.00019178,2]
[349071417,1736961040902,-516.9375375,0.00019178,7]
[349071419,1736961040912,-500.0,0.00019178,2]
[349071421,1736961040922,-500.0,0.00019178,2]
[349071423,1736961040933,-500.0,0.00019178,2]
[349071425,1736961040943,-500.0,0.00019178,2]
[349071427,1736961040953,-500.0,0.00019178,2]
[349071429,1736961040964,-500.0,0.00019178,2]
[349071431,1736961040975,-500.0,0.00019178,2]
[349071433,1736961040986,-500.0,0.00019178,2]
[349071435,1736961040996,-500.0,0.00019178,2]
[349071438,1736961041008,-500.0,0.00019178,2]
[349071440,1736961041018,-500.0,0.00019178,2]
[349071441,1736961041030,-500.0,0.00019178,2]
[349071444,1736961041040,-359.69034323,0.00019178,2]
[349071446,1736961041050,-500.0,0.00019178,2]
[349071448,1736961041061,-500.0,0.00019178,2]
[349071449,1736961041071,-359.52415553,0.00019178,2]
[349071452,1736961041082,-500.0,0.00019178,2]
[349071453,1736961041092,-500.0,0.00019178,2]
[349071456,1736961041103,-500.0,0.00019178,2]
[349071458,1736961041113,-500.0,0.00019178,2]
[349071460,1736961041124,-500.0,0.00019178,2]
[349071462,1736961041134,-500.0,0.00019178,2]
[349071464,1736961041145,-500.0,0.00019178,2]
[349071466,1736961041155,-500.0,0.00019178,2]
[349071467,1736961041164,-216.92705722,0.00019178,2]
[349071470,1736961041174,-500.0,0.00019178,2]
[349071471,1736961041185,-500.0,0.00019178,2]
[349071474,1736961041195,-500.0,0.00019178,2]
[349071476,1736961041205,-500.0,0.00019178,2]
[349071478,1736961041214,-500.0,0.00019178,2]
[349071480,1736961041224,-500.0,0.00019178,2]
[349071482,1736961041234,-500.0,0.00019178,2]
[349071484,1736961041244,-500.0,0.00019178,2]
[349071486,1736961041254,-500.0,0.00019178,2]
[349071488,1736961041264,-500.0,0.00019178,2]
[349071490,1736961041276,-500.0,0.00019178,2]
[349071492,1736961041287,-500.0,0.00019178,2]
[349071494,1736961041297,-500.0,0.00019178,2]
[349071496,1736961041308,-500.0,0.00019178,2]
[349071498,1736961041319,-500.0,0.00019178,2]
[349071500,1736961041332,-500.0,0.00019178,2]
[349071502,1736961041342,-500.0,0.00019178,2]
[349071504,1736961041352,-500.0,0.00019178,2]
[349071506,1736961041362,-500.0,0.00019178,2]
[349071508,1736961041372,-6024.48069342,0.00019178,2]
[349071511,1736961041388,-759.23930658,0.00019178,2]
[349071513,1736961041398,-500.0,0.00019178,2]
[349071515,1736961041409,-500.0,0.00019178,2]
[349071517,1736961041420,-500.0,0.00019178,2]
[349071519,1736961041430,-500.0,0.00019178,2]
[349071521,1736961041439,-500.0,0.00019178,2]
[349071523,1736961041449,-500.0,0.00019178,2]
[349071525,1736961041459,-151.91983262,0.00019178,2]
[349071527,1736961041469,-500.0,0.00019178,2]
[349071529,1736961041480,-177.7766,0.00019178,2]
[349071532,1736961041493,-322.2234,0.00019178,2]
[349071534,1736961041503,-500.0,0.00019178,2]
[349071536,1736961041512,-500.0,0.00019178,2]
[349071538,1736961041522,-500.0,0.00019178,2]
[349071540,1736961041535,-500.0,0.00019178,2]
[349071542,1736961041544,-500.0,0.00019178,2]
[349071544,1736961041554,-500.0,0.00019178,2]
[349071546,1736961041564,-500.0,0.00019178,2]
[349071548,1736961041574,-500.0,0.00019178,2]
[349071550,1736961041584,-500.0,0.00019178,2]
[349071552,1736961041593,-500.0,0.00019178,2]
[349071554,1736961041603,-789.48,0.00019178,2]
[349071556,1736961041614,-309.32311719,0.00019178,2]
[349071558,1736961041627,-109.53025716,0.00019178,2]
[349071560,1736961041637,-1028.5,0.00019178,2]
[349071562,1736961041646,-500.0,0.00019178,2]
[349071564,1736961041656,-500.0,0.00019178,2]
[349071566,1736961041666,-2.40441431,0.00019178,2]
[349071569,1736961041680,-497.59558569,0.00019178,2]
[349071571,1736961041690,-1000.0,0.00019178,7]
[349071573,1736961041701,-580.03,0.00019178,2]
[349071575,1736961041711,-503.98,0.00019178,2]
[349071577,1736961041720,-500.0,0.00019178,2]
[349071579,1736961041731,-500.0,0.00019178,2]
[349071581,1736961041741,-599.21,0.00019178,2]
[349071583,1736961041751,-500.0,0.00019178,2]
[349071585,1736961041762,-500.0,0.00019178,2]
[349071587,1736961041773,-500.0,0.00019178,2]
[349071589,1736961041786,-500.0,0.00019178,2]
[349071591,1736961041796,-500.0,0.00019178,2]
[349071593,1736961041807,-500.0,0.00019178,2]
[349071595,1736961041817,-500.0,0.00019178,2]
[349071597,1736961041827,-500.0,0.00019178,2]
[349071599,1736961041837,-500.0,0.00019178,2]
[349071601,1736961041847,-500.0,0.00019178,2]
[349071603,1736961041857,-500.0,0.00019178,2]
[349071605,1736961041867,-500.0,0.00019178,2]
[349071607,1736961041877,-500.0,0.00019178,2]
[349071610,1736961041888,-500.0,0.00019178,2]
[349071612,1736961041898,-500.0,0.00019178,2]
[349071626,1736961042023,-500.0,0.00019178,2]
[349071628,1736961042038,-500.0,0.00019178,2]
[349071630,1736961042048,-500.0,0.00019178,2]
[349071632,1736961042058,-500.0,0.00019178,2]
[349071634,1736961042067,-500.0,0.00019178,2]
[349071636,1736961042078,-500.0,0.00019178,2]
[349071638,1736961042088,-500.0,0.00019178,2]
[349071640,1736961042098,-500.0,0.00019178,2]
[349071642,1736961042108,-500.0,0.00019178,2]
[349071644,1736961042118,-11998.11,0.00019178,2]
[349071646,1736961042127,-500.0,0.00019178,2]
[349071648,1736961042137,-1176.13,0.00019178,2]
[349071650,1736961042147,-500.0,0.00019178,2]
[349071652,1736961042159,-500.0,0.00019178,2]
[349071654,1736961042169,-500.0,0.00019178,2]
[349071656,1736961042179,-509.96,0.00019178,2]
[349071658,1736961042189,-368.76241602,0.00019178,2]
[349071660,1736961042200,-500.0,0.00019178,2]
[349071662,1736961042209,-2098.31,0.00019178,2]
[349071664,1736961042219,-500.0,0.00019178,2]
[349071667,1736961042229,-500.0,0.00019178,2]
[349071668,1736961042239,-500.0,0.00019178,2]
[349071671,1736961042248,-500.0,0.00019178,2]
[349071673,1736961042258,-500.0,0.00019178,2]
[349071675,1736961042267,-551.5,0.00019178,2]
[349071677,1736961042279,-313.67436962,0.00019178,2]
[349071679,1736961042290,-500.0,0.00019178,2]
[349071682,1736961042300,-500.0,0.00019178,2]
[349071685,1736961042309,-527.56,0.00019178,2]
[349071688,1736961042319,-500.0,0.00019178,2]
[349071690,1736961042332,-500.0,0.00019178,2]
[349071692,1736961042341,-500.0,0.00019178,2]
[349071694,1736961042351,-500.0,0.00019178,2]
[349071696,1736961042361,-500.0,0.00019178,2]
[349071698,1736961042371,-500.0,0.00019178,2]
[349071700,1736961042381,-1044.28,0.00019178,2]
[349071702,1736961042391,-500.0,0.00019178,2]
[349071704,1736961042401,-500.0,0.00019178,2]
[349071706,1736961042411,-500.0,0.00019178,2]
[349071708,1736961042426,-500.0,0.00019178,2]
[349071710,1736961042436,-500.0,0.00019178,2]
[349071713,1736961042446,-1687.9,0.00019178,2]
[349071715,1736961042456,-500.0,0.00019178,2]
[349071718,1736961042466,-500.0,0.00019178,2]
[349071719,1736961042476,-500.0,0.00019178,2]
[349071721,1736961042485,-500.0,0.00019178,2]